bitfinex/quotes_SOLUSD_20250403
["timestamp","ask_amount","ask_price","bid_price","bid_amount"]
[1743652321345,26.0,120.11,120.1,0.03]
[1743652325125,0.063,120.14,120.1,0.03]
[1743652325336,26.063,120.14,120.1,0.03]
[1743652325529,0.063,120.14,120.1,0.03]
[1743652325843,26.063,120.14,120.1,0.03]
[1743652329557,26.063,120.14,120.1,18.67964886]
[1743652329843,0.063,120.14,120.1,18.67964886]
[1743652331445,0.063,120.14,120.12,18.64964886]
[1743652332331,0.063,120.14,120.11,29.1399]
[1743652338646,26.063,120.14,120.11,8.3257]
[1743652339453,0.063,120.14,120.11,8.3257]
[1743652339655,0.063,120.14,120.11,8.3557]
[1743652340034,0.063,120.14,120.11,29.1699]
[1743652341358,0.063,120.14,120.12,18.64964886]
[1743652341663,0.063,120.14,120.11,29.1699]
[1743652342143,0.063,120.14,120.12,18.64964886]
[1743652343259,0.063,120.14,120.13,8.3243]
[1743652345474,0.063,120.14,120.12,8.325]
[1743652347375,0.063,120.14,120.11,8.3553]
[1743652347668,26.0,120.13,120.11,0.03]
[1743652349063,34.3244,120.13,120.11,0.03]
[1743652349277,0.14216157,120.12,120.11,0.03]
[1743652353379,20.7435497,120.14,120.11,0.03]
[1743652353380,0.063,120.14,120.11,0.03]
[1743652353678,26.0,120.13,120.11,0.03]
[1743652357475,0.063,120.14,120.11,0.03]
[1743652358477,26.0,120.13,120.11,0.03]
[1743652364977,26.0,120.12,120.11,0.03]
[1743652365476,26.14216157,120.12,120.11,0.03]
[1743652366062,26.0,120.12,120.11,0.03]
[1743652367274,26.28432314,120.12,120.11,0.03]
[1743652367463,26.14216157,120.12,120.11,0.03]
[1743652368288,26.0,120.12,120.11,0.03]
[1743652369992,0.063,120.13,120.11,0.03]
[1743652370479,26.063,120.13,120.11,0.03]
[1743652371982,0.063,120.13,120.11,0.03]
[1743652373497,26.063,120.13,120.11,0.03]
[1743652375600,0.063,120.13,120.11,0.03]
[1743652377288,0.063,120.13,120.12,18.64964886]
[1743652378775,0.063,120.13,120.12,26.97464886]
[1743652379594,0.063,120.13,120.12,8.325]
[1743652380599,0.063,120.13,120.12,26.97464886]
[1743652382906,0.063,120.14,120.13,25.22234886]
[1743652383079,0.063,120.14,120.13,32.50234886]
[1743652384599,0.063,120.15,120.13,114.40234886]
[1743652384807,0.063,120.15,120.14,28.48134886]
[1743652385005,0.0001,120.18,120.15,18.64964886]
[1743652385715,0.0001,120.18,120.15,100.54964886]
[1743652385899,0.063,120.19,120.16,0.42648471]
[1743652386075,0.063,120.19,120.18,18.64964886]
[1743652386779,0.063,120.19,120.18,26.97044886]
[1743652387081,0.063,120.19,120.17,15.6012]
[1743652390113,0.063,120.19,120.17,8.3212]
[1743652390611,0.063,120.19,120.16,8.3222]
[1743652393522,0.063,120.19,120.16,29.1277]
[1743652394224,0.063,120.19,120.17,18.64964886]
[1743652394599,0.063,120.19,120.18,7.26]
[1743652396922,0.063,120.19,120.18,15.5808]
[1743652397226,0.063,120.19,120.18,7.26]
[1743652397409,0.063,120.19,120.17,8.3214]
[1743652398328,0.063,120.19,120.16,8.3222]
[1743652403958,26.063,120.19,120.16,8.3222]
[1743652405858,26.063,120.19,120.15,8.3229]
[1743652406354,0.063,120.19,120.15,8.3229]
[1743652406559,26.063,120.19,120.15,8.3229]
[1743652408761,26.0,120.17,120.14,8.3234]
[1743652409460,26.0,120.16,120.14,8.3234]
[1743652409758,26.0,120.16,120.12,29.1675]
[1743652411347,26.0,120.16,120.12,36.4275]
[1743652412561,26.0,120.16,120.12,29.1675]
[1743652416249,26.0,120.16,120.12,0.03]
[1743652416454,34.3225,120.16,120.12,0.03]
[1743652416943,26.0,120.16,120.12,0.03]
[1743652418938,26.0,120.17,120.12,0.03]
[1743652419567,0.063,120.19,120.12,102.18864886]
[1743652420175,26.0,120.18,120.12,102.18864886]
[1743652420779,26.0,120.18,120.13,29.135]
[1743652420976,26.0,120.18,120.14,7.26]
[1743652422973,26.0,120.18,120.15,8.3229]
[1743652425556,0.063,120.19,120.15,8.3229]
[1743652425972,0.063,120.19,120.15,29.1302]
[1743652430602,26.063,120.19,120.15,29.1302]
[1743652433599,0.063,120.19,120.15,29.1302]
[1743652433776,26.063,120.19,120.15,29.1302]
[1743652434910,0.063,120.19,120.15,8.3229]
[1743652435086,0.14216157,120.18,120.14,8.3233]
[1743652435403,26.0,120.16,120.14,8.3233]
[1743652435587,26.0,120.16,120.13,8.3243]
[1743652435986,26.0,120.16,120.15,0.03]
[1743652437703,26.0,120.17,120.15,0.03]
[1743652437890,26.0,120.16,120.15,0.03]
[1743652438399,26.14216157,120.16,120.15,0.03]
[1743652438574,0.14216157,120.16,120.15,0.03]
[1743652439505,26.0,120.16,120.15,0.03]
[1743652439807,1.697,120.19,120.15,0.03]
[1743652440099,26.0,120.17,120.15,0.03]
[1743652446610,1.697,120.19,120.15,0.03]
[1743652447018,26.0,120.17,120.15,0.03]
[1743652449918,26.0,120.16,120.15,0.03]
[1743652452309,0.34732314,120.18,120.15,0.03]
[1743652452616,26.0,120.16,120.15,0.03]
[1743652460803,0.063,120.18,120.15,0.03]
[1743652461404,26.063,120.18,120.15,0.03]
[1743652475232,0.063,120.18,120.15,0.03]
[1743652477030,0.063,120.18,120.15,29.1602]
[1743652482925,26.063,120.18,120.15,0.03]
[1743652483645,0.14216157,120.17,120.15,0.03]
[1743652484528,35.928,120.18,120.15,0.03]
[1743652485816,8.46366157,120.17,120.15,0.03]
[1743652487024,12.10018875,120.16,120.15,0.03]
[1743652487234,12.38451189,120.16,120.15,0.03]
[1743652488133,20.70671189,120.16,120.15,0.03]
[1743652490830,39.49852232,120.16,120.15,0.03]
[1743652492349,20.84887346,120.16,120.15,0.03]
[1743652493828,39.49852232,120.16,120.15,0.03]
[1743652498945,26.14216157,120.13,120.12,0.03]
[1743652499128,64.15199918,120.13,120.12,0.03]
[1743652499648,64.43632232,120.13,120.12,0.03]
[1743652500843,7.68648471,120.13,120.12,0.03]
[1743652501047,7.40216157,120.13,120.12,0.03]
[1743652501250,33.40216157,120.13,120.12,0.03]
[1743652501749,45.50235032,120.13,120.12,0.03]
[1743652502046,46.76062232,120.13,120.12,0.03]
[1743652505542,19.78667346,120.13,120.12,0.03]
[1743652505949,7.68648471,120.13,120.12,0.03]
[1743652508156,7.40216157,120.13,120.12,0.03]
[1743652510159,33.40216157,120.13,120.12,0.03]
[1743652512758,26.0,120.13,120.12,0.03]
[1743652521343,0.063,120.15,120.12,0.03]
[1743652521564,26.0,120.14,120.12,0.03]
[1743652522467,0.063,120.15,120.12,0.03]
[1743652522652,26.0,120.14,120.12,0.03]
[1743652523865,0.063,120.15,120.12,0.03]
[1743652524065,0.063,120.15,120.13,6.3618]
[1743652525949,0.063,120.15,120.14,8.3236]
[1743652526470,0.063,120.15,120.14,26.97324886]
[1743652529359,0.063,120.18,120.15,18.64964886]
[1743652529560,0.063,120.18,120.16,1.5713]
[1743652530769,0.063,120.18,120.17,8.3215]
[1743652532875,0.063,120.18,120.17,33.41484886]
[1743652537266,0.063,120.18,120.17,14.7652]
[1743652537475,0.063,120.18,120.17,7.26]
[1743652537969,0.063,120.18,120.16,8.322]
[1743652538147,0.063,120.18,120.16,15.582]
[1743652552391,0.063,120.18,120.17,7.26]
[1743652553181,0.063,120.18,120.17,25.90964886]
[1743652553898,0.063,120.18,120.17,34.23114886]
[1743652554699,0.063,120.18,120.17,15.5815]
[1743652563114,0.063,120.18,120.17,116.55763357]
[1743652565411,0.063,120.19,120.17,116.55763357]
[1743652565608,0.063,120.22,120.17,145.02023357]
[1743652566494,0.063,120.22,120.18,18.64964886]
[1743652566794,12.52667346,120.21,120.16,8.3222]
[1743652567007,26.0,120.18,120.15,8.3526]
[1743652567212,26.0,120.18,120.15,0.03]
[1743652567400,13.63238875,120.17,120.15,0.03]
[1743652567698,0.14216157,120.16,120.15,0.03]
[1743652567998,26.0,120.16,120.15,0.03]
[1743652569595,27.5322,120.17,120.15,0.03]
[1743652570698,1.5322,120.17,120.15,0.03]
[1743652571111,27.5322,120.17,120.15,0.03]
[1743652571310,1.5322,120.17,120.15,0.03]
[1743652572106,13.73958875,120.2,120.15,0.03]
[1743652572314,26.0,120.18,120.15,0.03]
[1743652577418,0.14216157,120.19,120.15,0.03]
[1743652577736,26.0,120.18,120.15,0.03]
[1743652587846,26.063,120.18,120.15,0.03]
[1743652592326,0.063,120.18,120.15,0.03]
[1743652593734,0.063,120.18,120.15,29.1602]
[1743652595123,0.063,120.18,120.16,18.64964886]
[1743652596142,0.063,120.18,120.17,8.3215]
[1743652597438,0.063,120.18,120.17,26.97114886]
[1743652597644,0.063,120.18,120.17,33.07254886]
[1743652600022,0.063,120.18,120.17,8.3215]
[1743652609667,0.063,120.18,120.16,8.3222]
[1743652611457,0.063,120.18,120.17,0.03]
[1743652638965,26.063,120.18,120.17,0.03]
[1743652639278,26.20516157,120.18,120.17,0.03]
[1743652652191,0.063,120.18,120.17,0.03]
[1743652656506,26.063,120.18,120.17,0.03]
[1743652658105,0.063,120.18,120.17,0.03]
[1743652658486,26.20516157,120.18,120.17,0.03]
[1743652662500,34.81028471,120.18,120.17,0.03]
[1743652668717,0.48948471,120.18,120.17,0.03]
[1743652669012,8.81028471,120.18,120.17,0.03]
[1743652676320,26.20516157,120.18,120.17,0.03]
[1743652678922,26.063,120.18,120.17,0.03]
[1743652679226,0.063,120.18,120.17,0.03]
[1743652679724,26.063,120.18,120.17,0.03]
[1743652680213,0.063,120.18,120.17,0.03]
[1743652681316,0.20516157,120.18,120.17,0.03]
[1743652681624,34.52596157,120.18,120.17,0.03]
[1743652681828,46.91047346,120.18,120.17,0.03]
[1743652683329,65.56012232,120.18,120.17,0.03]
[1743652687128,72.82012232,120.18,120.17,0.03]
[1743652688741,154.92012232,120.18,120.17,0.03]
[1743652691923,203.32087732,120.18,120.17,0.03]
[1743652692128,154.92012232,120.18,120.17,0.03]
[1743652692636,121.22087732,120.18,120.17,0.03]
[1743652692824,127.20032437,120.18,120.17,0.03]
[1743652693626,152.18032437,120.18,120.17,0.03]
[1743652696043,159.14841057,120.18,120.17,0.03]
[1743652698747,159.14841057,120.18,120.1,9.9548]
[1743652698748,26.0,120.07,120.06,1.6801]
[1743652699047,26.0,120.07,120.06,10.0092]
[1743652699246,12.24235032,120.1,120.06,10.0092]
[1743652699558,26.0,120.08,120.06,10.0092]
[1743652701343,26.0,120.08,120.06,8.3591]
[1743652702051,26.0,120.08,120.06,0.03]
[1743652702640,26.0,120.08,120.06,8.359]
[1743652703559,0.14216157,120.07,120.06,0.03]
[1743652703854,38.52667346,120.07,120.06,0.03]
[1743652704359,57.17632232,120.07,120.06,0.03]
[1743652704935,65.50472232,120.07,120.06,0.03]
[1743652705149,72.76472232,120.07,120.06,0.03]
[1743652706649,26.14216157,120.03,120.02,0.03]
[1743652706955,0.14216157,120.0,119.99,0.03]
[1743652707159,30.89199918,120.0,119.99,0.03]
[1743652710542,39.22529918,120.0,119.99,0.03]
[1743652710743,30.89199918,120.0,119.99,0.03]
[1743652711046,30.89199918,120.0,119.91,26.06337561]
[1743652711047,0.28432314,119.95,119.91,14.5872]
[1743652711253,26.0,119.92,119.91,14.5872]
[1743652711763,26.0,119.92,119.91,6.2479]
[1743652712659,0.14216157,119.91,119.88,6.4591]
[1743652712843,12.24235032,119.91,119.88,6.4591]
[1743652713046,26.0,119.9,119.88,6.4591]
[1743652713250,0.28432314,119.89,119.85,14.8028]
[1743652713668,26.0,119.89,119.85,14.8028]
[1743652713852,0.14216157,119.88,119.85,14.8028]
[1743652714053,26.0,119.87,119.85,6.4591]
[1743652714458,12.52667346,119.86,119.82,6.0811]
[1743652714766,38.24235032,119.84,119.82,6.0811]
[1743652714962,38.24235032,119.84,119.8,1.6637]
[1743652715165,38.24235032,119.84,119.8,10.0107]
[1743652715348,38.24235032,119.84,119.8,1.6637]
[1743652716157,26.0,119.81,119.8,1.6637]
[1743652716357,26.0,119.83,119.8,10.0108]
[1743652716560,26.0,119.84,119.8,30.8789]
[1743652716758,0.14216157,119.84,119.8,10.0108]
[1743652717159,12.52667346,119.84,119.8,8.3471]
[1743652717350,12.10018875,119.83,119.8,8.3471]
[1743652717777,19.16151378,119.83,119.8,8.3471]
[1743652718074,19.16151378,119.83,119.79,6.0811]
[1743652718075,26.0,119.8,119.79,6.0811]
[1743652718577,26.0,119.79,119.78,8.3483]
[1743652718791,19.01935221,119.81,119.78,8.3483]
[1743652719069,26.0,119.79,119.78,8.3483]
[1743652719274,26.0,119.79,119.77,8.3493]
[1743652719454,26.0,119.79,119.76,14.4004]
[1743652719455,26.0,119.78,119.76,14.4004]
[1743652721053,0.14216157,119.8,119.76,14.4004]
[1743652721253,0.14216157,119.79,119.76,14.4004]
[1743652721769,108.37935221,119.81,119.76,14.4004]
[1743652721950,82.1,119.84,119.76,35.2754]
[1743652722154,19.01935221,119.81,119.76,35.2754]
[1743652724867,26.0,119.8,119.76,35.2754]
[1743652725483,26.0,119.81,119.76,35.2754]
[1743652726161,45.01935221,119.81,119.76,35.2754]
[1743652727063,26.0,119.81,119.76,35.2754]
[1743652728176,0.42648471,119.8,119.76,35.2754]
[1743652728575,0.42648471,119.8,119.76,35.3054]
[1743652729685,0.14216157,119.79,119.76,35.3054]
[1743652732167,19.16151378,119.79,119.76,35.3054]
[1743652732481,45.44583692,119.77,119.76,0.03]
[1743652732664,45.16151378,119.77,119.76,0.03]
[1743652732866,26.14216157,119.77,119.76,0.03]
[1743652733278,45.16151378,119.77,119.76,0.03]
[1743652733985,45.44583692,119.77,119.76,0.03]
[1743652734188,64.09548578,119.77,119.76,0.03]
[1743652735687,154.54478578,119.77,119.76,0.03]
[1743652736486,146.19548578,119.77,119.76,0.03]
[1743652737781,0.28432314,119.75,119.71,8.3535]
[1743652737987,12.18808738,119.75,119.71,8.3535]
[1743652739372,12.47241052,119.75,119.71,8.3535]
[1743652739579,0.14216157,119.74,119.71,8.3535]
[1743652740571,82.1,119.76,119.71,8.3535]
[1743652740983,12.18808738,119.76,119.71,8.3535]
[1743652741175,12.18808738,119.76,119.71,29.2373]
[1743652743493,0.14216157,119.75,119.71,29.2373]
[1743652744893,0.14216157,119.75,119.71,8.3535]
[1743652744894,0.42648471,119.75,119.71,8.3535]
[1743652745691,12.61457209,119.75,119.71,8.3535]
[1743652746590,0.42648471,119.75,119.71,8.3535]
[1743652747125,12.18808738,119.74,119.7,10.0266]
[1743652747295,12.18808738,119.73,119.7,8.384]
[1743652747600,0.42648471,119.72,119.7,8.384]
[1743652747998,26.0,119.71,119.7,8.384]
[1743652748295,0.14216157,119.73,119.7,8.384]
[1743652748527,7.28,119.74,119.7,29.2695]
[1743652748903,0.14216157,119.74,119.7,29.2695]
[1743652749310,26.0,119.71,119.7,0.03]
[1743652749518,38.18808738,119.71,119.7,0.03]
[1743652749722,26.0,119.71,119.7,0.03]
[1743652750018,26.14216157,119.71,119.7,0.03]
[1743652751200,38.61457209,119.71,119.7,0.03]
[1743652751908,82.1,119.72,119.7,0.03]
[1743652752928,12.33024895,119.71,119.7,0.03]
[1743652754013,0.14216157,119.71,119.7,0.03]
[1743652754208,94.28808738,119.72,119.7,0.03]
[1743652754412,82.1,119.72,119.7,0.03]
[1743652755228,0.14216157,119.73,119.7,0.03]
[1743652755619,12.18808738,119.74,119.7,0.03]
[1743652755823,0.14216157,119.74,119.7,6.3616]
[1743652756216,0.14216157,119.74,119.71,8.3535]
[1743652756908,12.18808738,119.75,119.71,8.3535]
[1743652760736,12.18808738,119.74,119.71,8.3535]
[1743652761828,94.35108738,119.76,119.71,29.2373]
[1743652762031,82.163,119.76,119.71,29.2373]
[1743652762513,0.14216157,119.75,119.71,29.2373]
[1743652762713,0.14216157,119.75,119.7,0.03]
[1743652766133,0.063,119.76,119.7,7.31]
[1743652766734,0.063,119.76,119.71,1.6328]
[1743652767036,0.063,119.76,119.72,29.2348]
[1743652767541,0.063,119.76,119.73,6.3629]
[1743652768944,0.063,119.76,119.74,8.3514]
[1743652770319,0.063,119.76,119.74,15.6314]
[1743652776534,0.0001,119.76,119.74,15.6314]
[1743652776846,0.0001,119.76,119.75,1.6315]
[1743652778639,0.0001,119.76,119.75,9.9822]
[1743652780551,0.0001,119.76,119.75,8.3507]
[1743652783255,0.0001,119.76,119.75,14.4845]
[1743652784358,0.0001,119.76,119.75,21.7645]
[1743652790759,0.0001,119.76,119.75,40.41414886]
[1743652795160,0.0001,119.76,119.75,8.3507]
[1743652797238,0.0001,119.76,119.75,27.00034886]
[1743652800578,0.0001,119.76,119.75,27.03034886]
[1743652801251,0.0001,119.76,119.75,33.58404886]
[1743652802156,1.5398,119.83,119.75,159.4648]
[1743652802356,1.5398,119.83,119.76,18.64964886]
[1743652802758,1.5398,119.83,119.76,25.92964886]
[1743652802962,12.18808738,119.82,119.76,7.28]
[1743652803271,13.72788738,119.83,119.77,8.3493]
[1743652803456,1.5398,119.83,119.77,29.2226]
[1743652804551,38.18808738,119.82,119.77,8.3493]
[1743652805064,13.72788738,119.83,119.77,8.3493]
[1743652805573,26.0,119.81,119.77,8.3493]
[1743652806954,0.14216157,119.81,119.77,8.3493]
[1743652808071,12.33024895,119.81,119.77,8.3493]
[1743652808448,0.14216157,119.81,119.77,8.3493]
[1743652809566,0.14216157,119.81,119.76,20.8737]
[1743652810768,0.14216157,119.79,119.75,8.3807]
[1743652811476,0.14216157,119.79,119.75,0.03]
[1743652811776,26.0,119.77,119.75,0.03]
[1743652812081,14.12537209,119.79,119.75,0.03]
[1743652813477,22.47327209,119.79,119.75,0.03]
[1743652813677,12.18808738,119.78,119.75,0.03]
[1743652814361,26.0,119.76,119.75,0.03]
[1743652817983,0.14216157,119.78,119.75,0.03]
[1743652818195,26.0,119.76,119.75,0.03]
[1743652819382,0.14216157,119.78,119.75,0.03]
[1743652820087,0.14216157,119.76,119.75,0.03]
[1743652825463,26.14216157,119.76,119.75,0.03]
[1743652825664,12.33024895,119.76,119.75,0.03]
[1743652827205,26.0,119.76,119.75,0.03]
[1743652827489,0.063,119.78,119.75,0.03]
[1743652828799,0.063,119.78,119.75,82.35648471]
[1743652828970,0.063,119.78,119.76,18.64964886]
[1743652829293,0.063,119.78,119.77,15.7093]
[1743652831171,1.5395,119.86,119.77,55.65873357]
[1743652831369,13.72758738,119.86,119.79,18.64964886]
[1743652832288,26.0,119.84,119.79,18.64964886]
[1743652832673,26.0,119.84,119.8,8.3472]
[1743652833473,38.18808738,119.84,119.8,8.3472]
[1743652834676,38.18808738,119.84,119.78,8.3486]
[1743652835077,26.0,119.82,119.78,29.2201]
[1743652835988,0.063,119.84,119.79,24.98454886]
[1743652836679,0.063,119.84,119.8,8.3472]
[1743652837095,0.063,119.84,119.8,29.2153]
[1743652838682,0.063,119.84,119.8,8.3472]
[1743652838890,26.0,119.83,119.8,8.3472]
[1743652841301,26.0,119.83,119.79,8.3479]
[1743652841800,38.25108738,119.84,119.79,8.3479]
[1743652843096,26.063,119.84,119.79,8.3479]
[1743652843293,26.063,119.84,119.79,29.2177]
[1743652846183,0.063,119.84,119.8,20.27324886]
[1743652846488,0.063,119.84,119.81,0.42648471]
[1743652846804,0.063,119.88,119.81,0.42648471]
[1743652846805,0.063,119.88,119.84,18.64964886]
[1743652846988,0.063,119.88,119.85,29.2031]
[1743652847390,0.063,119.88,119.85,8.3437]
[1743652847603,12.25108738,119.88,119.85,8.3437]
[1743652848202,12.25108738,119.88,119.84,8.3441]
[1743652849007,12.25108738,119.88,119.82,8.3458]
[1743652849214,26.0,119.87,119.82,29.2104]
[1743652849721,38.18808738,119.87,119.82,29.2104]
[1743652850208,38.25108738,119.88,119.82,29.2104]
[1743652851082,0.42648471,119.87,119.81,8.3465]
[1743652851288,12.61457209,119.87,119.81,8.3465]
[1743652851489,12.33024895,119.87,119.81,8.3465]
[1743652851787,0.14216157,119.85,119.81,8.3465]
[1743652851993,12.47241052,119.87,119.81,8.3465]
[1743652852188,0.14216157,119.86,119.81,8.3465]
[1743652852387,12.18808738,119.87,119.81,8.3465]
[1743652852588,26.063,119.88,119.82,18.64964886]
[1743652853089,26.0,119.87,119.83,8.3451]
[1743652853592,26.0,119.87,119.83,29.2079]
[1743652853923,0.063,119.88,119.84,18.64964886]
[1743652854207,26.063,119.88,119.84,18.64964886]
[1743652855019,26.063,119.88,119.85,8.3437]
[1743652855594,0.063,119.88,119.85,8.3437]
[1743652856025,26.063,119.88,119.85,8.3437]
[1743652857709,26.063,119.88,119.85,29.2031]
[1743652860495,26.063,119.88,119.85,8.3437]
[1743652863120,0.063,119.88,119.85,8.3437]
[1743652863321,0.063,119.88,119.85,29.2031]
[1743652866233,0.063,119.88,119.84,15.7641]
[1743652866523,12.25108738,119.88,119.81,46.91544886]
[1743652866731,26.0,119.83,119.8,8.3472]
[1743652867043,26.0,119.83,119.79,8.3777]
[1743652867044,12.18808738,119.82,119.79,8.3777]
[1743652867212,12.18808738,119.82,119.79,0.03]
[1743652867724,12.18808738,119.8,119.79,0.03]
[1743652867931,38.33024895,119.8,119.79,0.03]
[1743652868111,32.89492095,119.8,119.79,0.03]
[1743652868306,41.24212095,119.8,119.79,0.03]
[1743652869120,63.81822095,119.78,119.77,0.03]
[1743652869724,52.02033272,119.78,119.77,0.03]
[1743652870222,45.46633272,119.78,119.77,0.03]
[1743652872924,19.03984801,119.8,119.77,0.03]
[1743652873107,26.0,119.79,119.77,0.03]
[1743652873307,26.0,119.78,119.77,0.03]
[1743652874026,19.03984801,119.78,119.77,0.03]
[1743652876228,19.18200958,119.78,119.77,0.03]
[1743652876412,45.46633272,119.78,119.77,0.03]
[1743652876610,19.46633272,119.78,119.77,0.03]
[1743652877945,19.18200958,119.78,119.77,0.03]
[1743652878312,45.18200958,119.78,119.77,0.03]
[1743652879218,26.14216157,119.78,119.77,0.03]
[1743652880617,26.0,119.78,119.77,0.03]
[1743652881122,89.5,119.81,119.77,0.03]
[1743652881123,82.1,119.81,119.77,0.03]
[1743652883049,325.52,119.82,119.77,0.03]
[1743652884332,325.52,119.82,119.78,6.058]
[1743652884531,101.13984801,119.85,119.78,6.058]
[1743652884731,26.0,119.83,119.78,6.058]
[1743652885131,0.063,119.82,119.79,29.2177]
[1743652889256,0.063,119.82,119.79,8.3479]
[1743652889838,19.03984801,119.81,119.77,8.379]
[1743652890658,19.03984801,119.81,119.77,0.03]
[1743652891871,45.52933272,119.82,119.77,0.03]
[1743652892052,26.063,119.82,119.77,0.03]
[1743652892234,19.18200958,119.78,119.77,0.03]
[1743652892561,26.82633272,119.78,119.77,0.03]
[1743652893066,82.1,119.79,119.77,0.03]
[1743652893272,26.0,119.78,119.77,0.03]
[1743652895653,45.03984801,119.78,119.77,0.03]
[1743652896558,45.18200958,119.78,119.77,0.03]
[1743652899357,26.0,119.78,119.77,0.03]
[1743652900560,325.48,119.8,119.77,0.03]
[1743652901570,325.48,119.8,119.77,18.67964886]
[1743652902244,325.48,119.8,119.77,0.03]
[1743652902944,0.063,119.81,119.77,0.03]
[1743652904566,0.063,119.81,119.77,18.67964886]
[1743652906370,0.063,119.81,119.78,8.3486]
[1743652911462,0.063,119.81,119.77,0.03]
[1743652911762,0.063,119.81,119.77,18.67964886]
[1743652913070,0.063,119.81,119.78,8.3486]
[1743652916054,26.063,119.81,119.78,8.3486]
[1743652916347,26.063,119.81,119.77,0.03]
[1743652916663,34.4095,119.81,119.77,0.03]
[1743652916875,12.17096492,119.8,119.77,0.03]
[1743652917178,26.0,119.78,119.77,0.03]
[1743652917688,45.0292892,119.8,119.77,0.03]
[1743652919472,19.45577391,119.79,119.77,0.03]
[1743652919662,19.17145077,119.78,119.77,0.03]
[1743652919858,19.45577391,119.78,119.77,0.03]
[1743652920065,38.10542277,119.78,119.77,0.03]
[1743652920251,46.45402277,119.78,119.77,0.03]
[1743652923390,0.063,119.81,119.77,0.03]
[1743652923682,0.063,119.81,119.78,7.28]
[1743652924974,0.063,119.81,119.79,8.3479]
[1743652929664,0.063,119.88,119.84,18.64964886]
[1743652929973,0.063,119.88,119.87,8.3423]
[1743652931860,0.063,119.88,119.86,8.3428]
[1743652937977,0.063,119.88,119.86,33.10274886]
[1743652938160,0.063,119.88,119.87,18.64964886]
[1743652938358,0.063,119.91,119.87,19.07613357]
[1743652938559,0.063,119.91,119.88,0.42648471]
[1743652938758,0.063,119.91,119.9,18.64964886]
[1743652938964,0.063,119.91,119.9,19.07613357]
[1743652940580,0.063,119.91,119.9,27.41633357]
[1743652940779,0.063,119.93,119.91,0.42648471]
[1743652940981,0.063,119.94,119.92,51.16563357]
[1743652941288,0.063,119.96,119.94,18.64964886]
[1743652942576,0.063,119.99,119.95,27.41293357]
[1743652942779,0.063,119.99,119.96,18.79181043]
[1743652942969,0.063,119.99,119.98,18.64964886]
[1743652943176,0.063,119.99,119.97,7.28]
[1743652943177,0.063,119.99,119.97,89.18]
[1743652943386,0.063,119.99,119.97,7.28]
[1743652944481,0.063,119.99,119.98,8.3347]
[1743652945990,0.063,119.99,119.98,33.84413357]
[1743652946288,0.563,120.0,119.98,115.74413357]
[1743652947099,0.563,120.0,119.99,19.07613357]
[1743652947325,0.563,120.0,119.99,100.97613357]
[1743652947511,97.7266,120.1,119.99,100.97613357]
[1743652947681,26.3292892,120.1,119.99,100.97613357]
[1743652947993,34.6556892,120.1,119.99,100.97613357]
[1743652948191,326.7609,120.11,120.01,19.07613357]